Cogmind - Beta 14 @@@ ROGUE MODE // 2024.09.09 @ 13:36:16 // Winter2019/RPGLIKE Player: Luminiferous Result: Destroyed by G-47 Trooper with Particle Gun Performance ------------- Evolutions (1) 500 Regions Visited (2) 400 Robots Destroyed (16) 80 Value Destroyed (397) 397 Prototype IDs (0) 0 Alien Tech Used (0) 0 Bonus (0) 0 TOTAL SCORE: 1377 Bonus ------- None Cogmind --------- Core Integrity 0/600 Matter 172/300 Energy 125/125 System Corruption 0% Temperature Cool (9) Movement Flying (37) Location -9/Materials Parts ------- > --- POWER (1) -------- Light Ion Engine > --- PROPULSION (2) --- Flight Unit Flight Unit > --- UTILITY (2) ------ Sensor Array Signal Interpreter > --- WEAPON (2) ------- Assault Rifle Assault Rifle > --- INVENTORY (3) ---- Ion Engine Assault Rifle Mini Grenade Launcher Peak State ------------ > --- POWER ------------ Light Ion Engine > --- PROPULSION ------- Flight Unit Flight Unit > --- UTILITY ---------- Sensor Array Signal Interpreter > --- WEAPON ----------- Assault Rifle Assault Rifle > --- INVENTORY -------- Ion Engine Assault Rifle Grenade Launcher [Rating: 7] Favorites ----------- Power Light Ion Engine Engine Light Ion Engine Propulsion Flight Unit Flight Unit Flight Unit Utility Signal Interpreter Device Sensor Array Processor Signal Interpreter Weapon Assault Rifle Energy Gun Medium Laser Ballistic Gun Assault Rifle Build | -11 -10 -9 ------- Run | Yrd Mat Mat Slots Evolved 3 | 3 . . Power . | . . . Propulsion 1 | 1 . . Utility 1 | 1 . . Weapon 1 | 1 . . Parts Attached 14 | 3 11 . Power 3 | 1 2 . Engine 3 | 1 2 . Core . | . . . Reactor . | . . . Propulsion 3 | . 3 . Treads . | . . . Leg . | . . . Wheel . | . . . Hover . | . . . Flight 3 | . 3 . Utility 4 | . 4 . Device 2 | . 2 . Storage . | . . . Processor 2 | . 2 . Hackware . | . . . Protection . | . . . Artifact . | . . . Weapon 4 | 2 2 . Energy Gun 1 | 1 . . Energy Cannon . | . . . Ballistic Gun 3 | 1 2 . Ballistic Cannon . | . . . Launcher . | . . . Special Weapon . | . . . Impact Weapon . | . . . Slashing Weapon . | . . . Piercing Weapon . | . . . Special Melee Weapon . | . . . Unidentified Prototypes . | . . . Parts Lost . | . . . Power . | . . . Propulsion . | . . . Utility . | . . . Weapon . | . . . Highest Loss Streak . | . . . To Critical Strikes . | . . . Average Slot Usage (%) 72 | . 70 100 Engine 13 | . 13 14 Flight 12 | . 11 28 Device 3 | . 2 14 Processor 13 | . 13 14 Energy Gun 1 | . 1 . Ballistic Gun 26 | . 26 28 Peak Build Rating 7 | 3 7 7 Average Rating 5 | 2 4 7 On Entrance 3 | . 3 7 Naked Turns . | . . . Heaviest Build 8 | 6 8 8 Greatest Support 8 | 3 8 8 Greatest Overweight (x) 2 | 1 2 . Average Overweight (x) . | . . . Largest Inventory Capacity 3 | 3 3 3 Average Capacity 2 | 1 3 3 Most Carried 3 | 1 3 3 Average Carried 2 | . 2 3 Final Capacity 3 | 3 3 3 Final Carried 3 | 1 3 3 Class Distribution -------------------- 73% | Mutant 26% | Scavenger-Mutant Dominant Class ---------------- Mutant | -10/Materials Scavenger-Mutant | -9/Materials Resources | -11 -10 -9 ----------- Run | Yrd Mat Mat Matter Collected 534 | 217 317 . Remotely . | . . . Salvage Created 441 | . 441 . Parts 42 | . 38 4 Haulers Intercepted 1 | . 1 . Recyclers Shooed . | . . . Parts Field Recycled . | . . . Retrieved Matter . | . . . Parts Self-Destructed . | . . . Prevented . | . . . Kills | -11 -10 -9 ------- Run | Yrd Mat Mat Combat Hostiles Destroyed 12 | . 10 2 Guns 12 | . 10 2 Classes Destroyed 5 | . 5 . Worker 1 | . 1 . Hauler 1 | . 1 . Watcher 2 | . 2 . Swarmer 3 | . 3 . Grunt 9 | . 7 2 Best Kill Streak 5 | . 5 2 Combat Bots Only 4 | . 4 2 Max Kills in Single Turn 2 | . 2 1 Gunslinging . | . . . Exploded . | . . . Melee . | . . . Uniques/NPCs Destroyed . | . . . Combat | -11 -10 -9 -------- Run | Yrd Mat Mat Hostile Shots Fired 97 | . 77 20 Missed 26 | . 17 9 Damage Taken 909 | . 768 141 Core 755 | . 641 114 Absorbed by Shields . | . . . Redirected to Core 504 | . 414 90 Regen/Repaired (Parts) 12 | . 12 . Core Remaining (%) 59 | 100 18 . Volleys Fired 62 | . 44 18 Largest 2 | . 2 2 Hottest 70 | . 70 40 Shots Fired 124 | . 88 36 Gun 124 | . 88 36 Cannon . | . . . Launcher . | . . . Special . | . . . Kinetic 114 | . 78 36 Thermal 10 | . 10 . Explosive . | . . . Electromagnetic . | . . . Robot Hit Streak 14 | . 14 6 Robot Miss Streak 4 | . 4 3 Penetration Max . | . . . Secondary Targets 2 | . 2 . Max Gunslinging Chain 1 | . 1 . Shots Hit Robots 76 | . 53 23 Core Hits 29 | . 24 5 Critical Kills . | . . . Critical Parts Destroyed . | . . . Critical Strikes . | . . . Melee Attacks . | . . . Impact . | . . . Slashing . | . . . Piercing . | . . . Sneak Attacks . | . . . Combat Hostiles . | . . . Follow-up Attacks . | . . . Damage Inflicted 957 | . 676 281 Guns 957 | . 676 281 Cannons . | . . . Explosions . | . . . Melee . | . . . Ramming . | . . . Kinetic 858 | . 577 281 Thermal 99 | . 99 . Explosive . | . . . Electromagnetic . | . . . Impact . | . . . Slashing . | . . . Piercing . | . . . Highest Corruption . | . . . Average Corruption . | . . . Corruption Purged . | . . . Corruption Blocked . | . . . Overload Shots . | . . . Overflow Damage . | . . . Projectiles . | . . . Explosions . | . . . Melee . | . . . Knockbacks . | . . . Impact . | . . . Kinetic . | . . . Secondary . | . . . Self-Inflicted Damage . | . . . Shots . | . . . Rammed . | . . . Targets Rammed . | . . . Kicked . | . . . Crushed . | . . . Highest Temperature 290 | . 290 4 Average Temperature 103 | . 121 2 Received Heat Transfer 429 | . 348 81 Effects 4 | . 4 . Energy Bleed 1 | . 1 . Interference 3 | . 3 . Siege Activations . | . . . Robots Corrupted . | . . . Combat Hostiles . | . . . Parts Fried . | . . . Impact Corruptions . | . . . Robots Melted . | . . . Combat Hostiles . | . . . Parts Melted 2 | . 2 . Heat Transferred 296 | . 296 . Parts Sabotaged . | . . . Parts Stolen . | . . . Parts Stripped . | . . . Power Chain Reactions . | . . . Alert | -11 -10 -9 ------- Run | Yrd Mat Mat Peak Influence 295 | . 295 69 Initial 29 | . . 29 Average 98 | . 106 37 Maximum Alert Level 1 | . 1 . Low Security (%) 79 | 100 77 100 Level 1 20 | . 22 . Level 2 . | . . . Level 3 . | . . . Level 4 . | . . . Level 5 . | . . . High Security . | . . . Max Security . | . . . Squads Dispatched 2 | . 2 . Investigation 1 | . 1 . Extermination . | . . . Reinforcement 1 | . 1 . Assault . | . . . Garrison . | . . . Intercept . | . . . Searches Triggered . | . . . Construction Impeded . | . . . Haulers Reinforced . | . . . Active Scanning Responses . | . . . Cargo Convoy Interrupts . | . . . Stealth | -11 -10 -9 --------- Run | Yrd Mat Mat Distress Signals 2 | . 2 . Communications Jammed . | . . . Distress Signals . | . . . Times Spotted 25 | . 22 3 Peak Tracking Total 7 | . 7 3 Tactical Retreats 2 | . 2 . Traps | -11 -10 -9 ------- Run | Yrd Mat Mat Traps Triggered 2 | . 2 . Indirectly . | . . . Trap Hack Attempts . | . . . Triggered . | . . . Disarmed . | . . . Reprogrammed . | . . . Reused . | . . . Traps Extracted . | . . . Installed . | . . . Triggered . | . . . Machines | -11 -10 -9 ---------- Run | Yrd Mat Mat Machines Disabled . | . . . Max in Single Turn . | . . . Machines Repaired . | . . . Machines Dismantled . | . . . Machines Sabotaged . | . . . Overloaded Fab Kills . | . . . Hacking | -11 -10 -9 --------- Run | Yrd Mat Mat Machines Accessed 4 | . 3 1 Terminals 3 | . 2 1 Fabricators . | . . . Repair Stations 1 | . 1 . Recycling Units . | . . . Scanalyzers . | . . . Garrison Access . | . . . Total Hacks 14 | . 12 2 Successful 9 | . 7 2 Failed 5 | . 5 . Catastrophic . | . . . Database Lockouts . | . . . Manual 5 | . 3 2 Terminals 8 | . 6 2 Fabricators . | . . . Repair Stations 6 | . 6 . Recycling Units . | . . . Scanalyzers . | . . . Garrison Access . | . . . Terminal Hacks 6 | . 4 2 Terminal Index 1 | . . 1 Alert Level 2 | . 2 . Unreport Threat 1 | . 1 . Hauler Manifests 2 | . 1 1 Fabricator Hacks . | . . . Repair Station Hacks 2 | . 2 . Scan Component 1 | . 1 . Repair 1 | . 1 . Recycling Unit Hacks . | . . . Scanalyzer . | . . . Garrison Access Hacks . | . . . Unauthorized Hacks 1 | . 1 . Terminals 1 | . 1 . Assimilate 1 | . 1 . Fabricators . | . . . Repair Stations . | . . . Recycling Units . | . . . Scanalyzers . | . . . Garrison Access . | . . . Data Cores Recovered . | . . . Used . | . . . Hacking Detections 3 | . 2 1 Full Trace Events 1 | . 1 . Feedback Events . | . . . Feedback Blocked . | . . . Robot Schematics Acquired . | . . . Robots Built . | . . . Authchips . | . . . Time . | . . . Total Robot Build Rating . | . . . Part Schematics Acquired . | . . . Parts Built . | . . . Authchips . | . . . Time . | . . . Total Part Build Rating . | . . . Parts Repaired 1 | . 1 . Time 26 | . 26 . Parts Recycled . | . . . Recycled Matter . | . . . Retrieved Matter . | . . . Retrieved Components . | . . . Parts Scanalyzed . | . . . Part Schematics Acquired . | . . . Parts Damaged . | . . . Bothacking | -11 -10 -9 ------------ Run | Yrd Mat Mat Used RIF Installer . | . . . Robots Hacked . | . . . Non-combat . | . . . Combat . | . . . Robot Hacks Applied . | . . . Relay Couplers Released . | . . . Fabnet Peak Effective % . | . . . Robots Rewired . | . . . Allies Hacked . | . . . Hacks Repelled . | . . . Allies | -11 -10 -9 -------- Run | Yrd Mat Mat Total Allies 1 | . 1 . Largest Group 1 | . 1 1 Highest-Rated Group 10 | . 10 10 Highest-Rated Ally 10 | . 10 10 Total Orders . | . . . Ally Attacks . | . . . Total Damage . | . . . Kills . | . . . Allies Corrupted . | . . . Allies Melted . | . . . Intel | -11 -10 -9 ------- Run | Yrd Mat Mat Robot Analysis Total . | . . . Derelict Logs Recovered . | . . . Drone Launches . | . . . Drone Recoveries . | . . . Exploration | -11 -10 -9 ------------- Run | Yrd Mat Mat Turns Passed 1265 | 33 1135 97 Spaces Moved 918 | 36 822 60 Core 235 | 36 199 . Treads . | . . . Legs . | . . . Wheels . | . . . Hover . | . . . Flight 683 | . 623 60 Fastest Speed 37 | 50 37 37 Average Speed 63 | 77 65 37 Slowest Speed 150 | 100 150 37 Overloaded Moves . | . . . Propulsion Burnouts . | . . . Robots Hopped 3 | . 3 . Cave-ins Triggered . | . . . Exploration Rate (%) 35 | 3 92 10 Regions Visited 2 Branch Regions . Pre-discovered Areas . | . . . Known Exits Taken 1 | . 1 . Unknown Exits Taken 1 | 1 . . Scrap Searched . | . . . Spaces Dug . | . . . Terrain Destroyed . | . . . Melee . | . . . Projectile . | . . . AOE . | . . . Terrain Rammed . | . . . Walls Destroyed . | . . . Machines Disabled . | . . . Actions | -11 -10 -9 --------- Run | Yrd Mat Mat Total 1471 | 39 1332 100 Wait 460 | . 438 22 Move 910 | 35 815 60 Hop 3 | . 3 . Pick Up 8 | 1 7 . Fast Attach 8 | 3 5 . Attach 4 | . 4 . Detach . | . . . Swap 2 | . 2 . Drop 7 | . 7 . Fire 62 | . 44 18 Melee . | . . . Ram . | . . . Kick . | . . . Crush . | . . . Escape Stasis . | . . . Rewire . | . . . Trap . | . . . Miscellaneous 7 | . 7 . Route ------- -11/Scrapyard -10/Materials (discovered 3 exits: *Mat x2 / *Min) -9/Materials History --------- Turn | Location | Event 8 | -11/Scrapyard | Upgraded with Propulsion slot (x1) 8 | -11/Scrapyard | Upgraded with Utility slot (x1) 8 | -11/Scrapyard | Upgraded with Weapon slot (x1) 10 | -11/Scrapyard | Discovered new exit (range 15) 34 | -11/Scrapyard | Entered Materials 310 | -10/Materials | Build established: Mutant 567 | -10/Materials | Discovered new exit (range 16) 588 | -10/Materials | Identified exit to Mines 654 | -10/Materials | Repaired Lgt. Ion Engine 697 | -10/Materials | Core integrity fell below 50% 842 | -10/Materials | Discovered new exit (range 13) 907 | -10/Materials | Core integrity fell below 20% 1062 | -10/Materials | Discovered new exit (range 8) 1069 | -10/Materials | Identified exit to Materials 1169 | -10/Materials | Entered another Materials area 1169 | -9/Materials | Accompanied by 1 ally 1170 | -9/Materials | Core integrity fell below 50% 1170 | -9/Materials | Core integrity fell below 20% 1171 | -9/Materials | Reached level 2 1238 | -9/Materials | Build established: Scavenger-Mutant 1253 | -9/Materials | Reached level 3 1266 | -9/Materials | Destroyed by G-47 Trooper with Particle Gun Last Messages --------------- 2x Tractor Beam 1x Lgt. Cannon 3x Weight Redist. System A-02 Transporter 6x Imp. Flight Unit (2 escorts) A-02 Transporter 3x Lrg. Battery 1x Matter (68) 1x Disposable Heat Sink A-02 Transporter 5x Adv. Beam Cannon (1 escort) >>Index(Terminals) Found 12 terminals. Downloaded coordinate data. 01184_ K-01 Serf collects debris. 01238_ G-34 Mercenary destroyed. 01253_ Reached level 3. 01253_ G-34 Mercenary destroyed. Map ----- +----------------------------------------------------+ | ?????????????????????????????????????????????? | | ?????????????????????????????????????????????? | | ?????????????????????????????????????????????? | | ?????????????????????????????????????????????? | | ????????????????????????????????????########## | | ?????????????????????????????######## """ # | | ?????????????????????????????# + """ # | | ?????????????????????????????# # """ # | | ?????????????????????????????# # + | | ?????????????????????????????# # # | | ?????????????????????????????# "T" # # | | ?????????????????????????????# ######## | | ????????????? ###############+#+########## | | ??????????? | | ???????? | | ??????#!!! | | ??????#!!! ##############/###### ##### | | ??????#!! ??????????# #???#???###+ | | ??????# ??????????# #??????????? | | ??????# #??########""" #??????????? | | ??????# #??# [[* #""" #??????????? | | ??????? #??# [[ #""" #??????????? | | ???????? #??# [* # #??????????? | | ???????? #??# !#""" #??????????? | | ???????? """ #??# #""" ] #??????????? | | ?????#? """ #??# @%% #""" #??????????? | | ?????# """ ######g#### #??????????? | | ?????# =[ + #??????????? | | ?????# ##########??????????? | | ?????## #### #???????????????????? | | ???????????##+#### ####+##???????????????????? | | ?????????????????# #?????????????????????????? | | ?????????????????# #?????????????????????????? | | ?????????????????# #?????????????????????????? | | ?????????????????# #?????????????????????????? | | ?????????????????# #?????????????????????????? | | ?????????????????# #x????????????????????????? | | ?????????????????? ??????????????????????????? | | ?????????????????? ??????????????????????????? | | ?????????????????? ??????????????????????????? | | ?????????????????? ??????????????????????????? | | ?????????????????? ??????????????????????????? | | ?????????????????? ??????????????????????????? | | ?????????????????????????????????????????????? | | ?????????????????????????????????????????????? | | ?????????????????????????????????????????????? | | ?????????????????????????????????????????????? | | ?????????????????????????????????????????????? | | ?????????????????????????????????????????????? | | ?????????????????????????????????????????????? | +----------------------------------------------------+ Best States ------------- Heat Dissipation 25 Energy Generation 10 Energy Capacity 125 Matter Stores 300 Matter Capacity 300 Sight Range 16 Robot Scan Range 14 Terrain Scan Density 10 Evasion (%) 62 Item Schematics ----------------- None Robot Schematics ------------------ None Fabricated ------------ Nothing Alien Tech Used ----------------- None Achievements -------------- None Challenges ------------ None RPGLIKE | -11 -10 -9 --------- Run | Yrd Mat Mat Levels Raised 2 | . . 2 XP Earned 6085 | 3000 1385 1700 XP Spent 3000 | 3000 . . Upgrades 6 | 6 . . Propulsion Slot 1 | 1 . . Utility Slot 1 | 1 . . Weapon Slot 1 | 1 . . Inventory Capacity 3 | 3 . . Protomatter Created 161 | . 102 59 Integrity Restored 150 | . 150 . Core 150 | . 150 . Protomatter Decayed 52 | . 52 . Game ------ Seed LinearProjectionBeacon Manual? 0 Play Time 00:08:36 Cumulative 117.9 hours Start 2024.09.09 @ 13:28:40 End 2024.09.09 @ 13:36:16 Sessions 1 Manual Loads 0 Difficulty Rogue Special Mode Winter2019/RPGLIKE Game No. 43 Rogue 41 Adventurer 2 Explorer 0 Win Type - Total 9 Types 1/1/2/1/1/1/1/1/0 Lore% 37 Gallery% 69 Achievement% 61 Wizard Run 0 Options --------- Layout 0 ASCII 0 Keyboard 0 Movement Mouse Keybinds 1 Fullscreen 2 Font 18/Smallcaps Map View 76x50 Zoom Use 0% Tactical HUD 1 Map Filters NONE Filters NONE Steam 1 RUN: 152cac18-7901-4324-8532-fb57cc9cac7a